bitfinex-derivatives/quotes_BNBF0:USTF0_20250509
["timestamp","ask_amount","ask_price","bid_price","bid_amount"]
[1746784880668,0.53773629,631.93,630.89,0.31701247]
[1746784880869,0.27562064,631.93,630.89,0.31701247]
[1746784881266,0.26211565,631.92,630.89,0.31701247]
[1746784883671,0.27562392,631.91,630.89,0.31701247]
[1746784884066,0.26211565,631.9,630.89,0.31701247]
[1746784886671,0.27567195,631.89,630.89,0.31701247]
[1746784887272,0.26211565,631.88,630.89,0.31701247]
[1746784890671,0.27586644,631.87,630.89,0.31701247]
[1746784891067,0.26211565,631.86,630.89,0.31701247]
[1746784892572,0.26211565,631.95,630.89,0.31701247]
[1746784893673,0.27590144,631.94,630.89,0.31701247]
[1746784894069,0.26211565,631.93,630.89,0.31701247]
[1746784895771,0.26211565,631.95,630.89,0.31701247]
[1746784896675,0.275873,631.94,630.89,0.31701247]
[1746784897074,0.26211565,631.93,630.89,0.31701247]
[1746784898677,0.27587519,631.92,630.89,0.31701247]
[1746784899171,0.26211565,631.91,630.89,0.31701247]
[1746784901182,0.27587519,631.92,630.89,0.31701247]
[1746784901375,0.31647572,631.96,630.89,0.31701247]
[1746784901680,0.27586863,631.91,630.89,0.31701247]
[1746784902079,0.26163786,631.9,630.89,0.31701247]
[1746784904582,0.27569051,631.89,630.89,0.31701247]
[1746784904877,0.26148023,631.88,630.89,0.31701247]
[1746784907685,0.27566758,631.87,630.89,0.31701247]
[1746784908084,0.26148023,631.86,630.89,0.31701247]
[1746784908986,0.26148023,631.95,630.89,0.31701247]
[1746784915799,0.31647572,631.96,630.89,0.31701247]
[1746784916095,0.26162672,631.95,630.89,0.31701247]
[1746784918702,0.31647572,631.96,630.89,0.31701247]
[1746784919101,0.2617316,631.95,630.89,0.31701247]
[1746784924203,0.2617316,631.95,630.86,0.27557262]
[1746784925503,0.2617316,633.11,630.86,0.27557262]
[1746784925703,0.2617316,633.1,630.86,0.27557262]
[1746784926005,0.2617316,633.09,630.86,0.27557262]
[1746784926306,0.2617316,633.08,630.86,0.27557262]
[1746784926605,0.53726386,633.08,630.86,0.27557262]
[1746784926906,0.2617316,633.07,630.86,0.27557262]
[1746784928207,0.2617316,633.06,630.86,0.27557262]
[1746784928399,0.2617316,633.06,629.78,1.00675414]
[1746784928603,0.2617316,633.05,629.78,1.00675414]
[1746784928806,0.53726495,633.05,629.78,1.00675414]
[1746784929007,0.2617316,633.04,629.79,0.29106792]
[1746784929307,0.2617316,633.03,629.8,0.29106792]
[1746784929707,0.2617316,633.03,629.8,0.56660127]
[1746784930006,0.2617316,633.02,629.81,0.29106792]
[1746784930703,0.2617316,633.01,629.82,0.29106792]
[1746784931009,0.2617316,633.0,629.83,0.29106792]
[1746784931609,0.2617316,632.99,629.84,0.29106792]
[1746784931810,0.2617316,632.98,629.84,0.29106792]
[1746784932014,0.2617316,632.98,629.85,0.29106792]
[1746784932212,0.2617316,632.97,629.85,0.29106792]
[1746784932506,0.2617316,632.96,629.86,0.29106792]
[1746784932710,0.2617316,632.95,629.87,0.29106792]
[1746784933012,0.2617316,632.94,629.88,0.29106792]
[1746784933316,0.2617316,632.93,629.89,0.29106792]
[1746784933710,0.2617316,632.92,629.9,0.29106792]
[1746784934106,0.2617316,632.91,629.91,0.29106792]
[1746784934605,0.2617316,632.9,629.92,0.29106792]
[1746784934812,0.53724968,632.9,629.92,0.29106792]
[1746784935014,0.2617316,632.89,629.93,0.29106792]
[1746784935512,0.2617316,632.89,629.86,0.29106792]
[1746784935813,0.2617316,632.88,629.87,0.29106792]
[1746784936112,0.2617316,632.87,629.88,0.29106792]
[1746784936315,0.2617316,632.86,629.89,0.29106792]
[1746784936618,0.2617316,632.89,629.86,0.29106792]
[1746784936915,0.2617316,632.88,629.86,0.29106792]
[1746784937213,0.2617316,632.87,629.86,0.29106792]
[1746784937608,0.27551481,632.86,629.86,0.29106792]
[1746784937811,0.53724641,632.86,629.86,0.29106792]
[1746784938109,0.2617316,632.85,629.87,0.29106792]
[1746784938617,0.2617316,632.84,629.88,0.29106792]
[1746784938814,2.01121044,632.8,629.88,0.29106792]
[1746784939012,2.01121044,632.8,629.9,0.31751071]
[1746784939209,0.31612556,632.66,629.91,0.29106792]
[1746784939409,0.2617316,632.65,629.92,0.29106792]
[1746784939717,0.31612556,632.66,629.9,0.31751071]
[1746784940115,0.26156166,632.65,629.91,0.29123553]
[1746784940508,0.26156166,632.64,629.91,0.29123553]
[1746784940815,0.26156166,632.63,629.91,0.29123553]
[1746784941215,0.26156166,632.62,629.91,0.29123553]
[1746784941715,0.26156166,632.61,629.91,0.29123553]
[1746784942011,0.26156166,632.6,629.91,0.29123553]
[1746784942214,0.26156166,632.59,629.91,0.29123553]
[1746784942516,0.26156166,632.58,629.91,0.29123553]
[1746784942716,0.26156166,632.57,629.91,0.29123553]
[1746784943217,0.26156166,632.56,629.91,0.29123553]
[1746784943918,0.26156166,632.55,629.91,0.29123553]
[1746784944218,0.26156166,632.54,629.91,0.29123553]
[1746784944619,0.26156166,632.53,629.91,0.29123553]
[1746784944914,0.26156166,632.52,629.91,0.29123553]
[1746784945220,2.01121044,632.31,629.9,0.31751071]
[1746784945620,0.26117483,632.3,629.91,0.29141559]
[1746784945814,0.26117483,632.29,629.91,0.29141559]
[1746784946119,0.26117483,632.28,629.91,0.29141559]
[1746784946415,0.26117483,632.27,629.91,0.29141559]
[1746784946819,0.26117483,632.26,629.91,0.29141559]
[1746784947120,0.26117483,632.25,629.91,0.29141559]
[1746784947315,0.26117483,632.24,629.91,0.29141559]
[1746784947717,2.01121044,632.21,629.91,0.29141559]
[1746784948221,2.01121044,632.21,629.87,0.27583911]
[1746784948222,0.26117483,632.2,629.88,0.29141559]
[1746784948520,0.26117483,632.19,629.88,0.29141559]
[1746784948819,0.26117483,632.18,629.88,0.29141559]
[1746784949122,0.26117483,632.17,629.88,0.29141559]
[1746784949420,0.26117483,632.16,629.87,0.27583911]
[1746784950122,0.26117483,632.15,629.87,0.27583911]
[1746784950620,0.26117483,632.14,629.87,0.27583911]
[1746784950916,0.26117483,632.13,629.87,0.27583911]
[1746784951215,0.26117483,632.12,629.87,0.27583911]
[1746784951721,0.26117483,632.11,629.87,0.27583911]
[1746784952120,0.26117483,632.1,629.87,0.27583911]
[1746784952422,0.26117483,632.09,628.6,1.00675414]
[1746784952613,0.26117483,632.09,629.87,0.27596489]
[1746784952819,0.26117483,632.08,629.87,0.27596489]
[1746784953016,0.26117483,632.07,628.77,0.31808133]
[1746784953318,0.26117483,632.07,628.78,0.29151253]
[1746784953523,0.26117483,632.06,628.78,0.29151253]
[1746784953722,0.26117483,632.06,628.79,0.29151253]
[1746784954024,0.26117483,632.05,628.8,0.93175099]
[1746784954224,0.26117483,632.04,628.81,0.93175099]
[1746784954623,0.26117483,632.03,628.82,0.93175099]
[1746784954922,0.26117483,632.03,628.82,1.20763493]
[1746784955123,0.26117483,632.02,628.83,0.93175099]
[1746784955418,0.26117483,632.01,628.84,0.93175099]
[1746784956022,0.26117483,632.0,628.85,0.93175099]
[1746784956622,0.26117483,631.99,628.86,0.93175099]
[1746784956924,0.26117483,631.98,628.87,0.93175099]
[1746784957223,0.26117483,631.97,628.88,0.93175099]
[1746784957723,0.26117483,631.96,628.89,0.93175099]
[1746784957926,0.26117483,631.95,628.9,0.93175099]
[1746784958324,0.26117483,631.94,628.91,0.93175099]
[1746784958625,0.26117483,631.93,628.92,0.93175099]
[1746784958924,0.26117483,631.92,628.93,0.93175099]
[1746784959225,0.26117483,631.91,628.94,0.93175099]
[1746784959525,0.26117483,631.9,628.95,0.93175099]
[1746784959826,0.26117483,631.89,628.96,0.93175099]
[1746784960227,0.26117483,631.88,628.97,0.93175099]
[1746784960725,0.26117483,631.87,628.98,0.93175099]
[1746784961322,0.26117483,631.86,628.99,0.93175099]
[1746784961723,0.26117483,631.85,629.0,0.93175099]
[1746784962028,0.26117483,631.84,629.01,0.93175099]
[1746784962329,0.26117483,631.83,629.02,0.93175099]
[1746784962730,0.26117483,631.82,629.03,0.93175099]
[1746784963029,0.26117483,631.81,629.04,0.93175099]
[1746784963325,0.26117483,631.8,629.05,0.93175099]
[1746784963628,0.26117483,631.79,629.06,0.93175099]
[1746784963929,0.26117483,631.78,629.07,0.93175099]
[1746784964524,0.26117483,631.77,629.08,0.29151253]
[1746784964825,0.26117483,631.76,629.09,0.29151253]
[1746784965029,0.26117483,631.75,629.1,0.29151253]
[1746784965424,0.26117483,631.74,629.11,0.29151253]
[1746784965625,0.26117483,631.73,629.12,0.29151253]
[1746784965824,0.26117483,631.72,629.13,0.29151253]
[1746784966032,0.26117483,631.85,629.14,0.29151253]
[1746784966226,0.26117483,631.84,629.15,0.29151253]
[1746784966525,0.26117483,631.83,629.16,0.29151253]
[1746784966729,0.26117483,631.82,629.17,0.29151253]
[1746784966925,0.26117483,631.81,629.18,0.29151253]
[1746784967125,0.26117483,631.8,629.19,0.29151253]
[1746784967431,0.26117483,631.79,629.2,0.29151253]
[1746784967728,0.53703362,631.79,629.2,0.29151253]
[1746784968932,0.53703362,631.79,629.0,0.91609725]
[1746784968933,0.26117483,631.78,629.21,0.29151253]
[1746784969230,0.26117483,631.77,629.21,0.29151253]
[1746784969532,0.26117483,631.78,629.22,0.29151253]
[1746784969728,0.26117483,631.78,629.32,0.31780334]
[1746784970434,0.26117483,631.78,629.33,0.29151253]
[1746784970627,0.2758741,631.77,629.33,0.29151253]
[1746784970932,0.26117483,631.76,629.34,0.29151253]
[1746784971237,0.26117483,631.76,629.35,0.29151253]
[1746784971535,0.26117483,631.75,629.35,0.29151253]
[1746784971730,0.26117483,631.75,629.36,0.29151253]
[1746784972033,0.26117483,631.74,629.37,0.29151253]
[1746784972437,0.26117483,631.73,629.38,0.29151253]
[1746784972735,0.26117483,631.72,629.39,0.29151253]
[1746784973029,0.26117483,631.71,629.4,0.29151253]
[1746784973335,0.26117483,631.7,629.41,0.29151253]
[1746784973732,0.26117483,631.69,629.42,0.29151253]
[1746784973933,0.26117483,631.68,629.43,0.29151253]
[1746784974334,0.26117483,631.67,629.44,0.29151253]
[1746784974635,0.26117483,631.76,629.33,0.29151253]
[1746784976836,0.26117483,632.18,629.33,0.29151253]
[1746784977136,0.26117483,632.17,629.33,0.29151253]
[1746784977635,0.26117483,632.16,629.33,0.29151253]
[1746784977936,0.53708283,632.16,629.33,0.29151253]
[1746784978132,0.26117483,632.15,629.34,0.29151253]
[1746784978435,0.26117483,632.14,629.35,0.29151253]
[1746784978838,0.26117483,632.13,629.36,0.29151253]
[1746784979238,0.26117483,632.12,629.37,0.29151253]
[1746784979440,2.01121044,631.96,629.39,0.31776799]
[1746784980139,0.31653583,631.84,629.4,0.29151253]
[1746784980641,0.26117483,631.83,629.41,0.60927043]
[1746784980936,0.26117483,631.83,629.42,0.31775285]
[1746784981144,0.31660097,631.71,629.42,0.60926538]
[1746784981339,0.31660097,631.71,629.43,0.29151253]
[1746784981539,0.31660097,631.71,629.44,0.31774275]
[1746784982034,0.26163684,631.7,629.45,0.29149737]
[1746784982242,0.26163684,631.7,629.46,0.31773265]
[1746784982439,0.31666112,631.59,629.46,0.31773265]
[1746784982639,0.31666112,631.59,629.47,0.29149737]
[1746784982840,0.31666112,631.59,629.48,0.31772256]
[1746784983045,0.26163684,631.58,629.48,0.31772256]
[1746784983445,0.26163684,631.58,629.49,0.29149737]
[1746784983639,0.31671628,631.48,629.51,0.31770742]
[1746784984047,0.26163684,631.47,629.52,0.29149737]
[1746784984646,0.26163684,631.47,629.54,0.31769228]
[1746784984847,0.31673133,631.45,629.54,0.31769228]
[1746784985145,0.26163684,631.44,629.55,0.29149737]
[1746784985544,0.31673133,631.45,629.54,0.31769228]
[1746784985746,0.26159763,631.43,629.56,0.29141281]
[1746784985940,0.26159763,631.44,629.55,0.29141281]
[1746784986749,0.27591675,631.43,629.55,0.29141281]
[1746784987147,0.26159763,631.42,629.55,0.29141281]
[1746784988146,0.26159763,631.44,629.56,0.29141281]
[1746784988350,0.26159763,631.41,629.56,0.29141281]
[1746784988545,0.26159763,631.44,629.57,0.29141281]
[1746784988948,0.26159763,631.44,629.58,0.29141281]
[1746784989351,0.26159763,631.44,629.59,0.29141281]
[1746784989645,0.26159763,631.44,629.6,0.29141281]
[1746784989949,0.26159763,631.44,629.61,0.29141281]
[1746784990452,0.26159763,631.44,629.62,0.29141281]
[1746784990650,0.26159763,631.44,629.63,0.29141281]
[1746784991149,0.31673133,631.45,629.64,0.29141281]
[1746784992250,0.31673133,631.45,629.65,0.29141281]
[1746784992552,0.31673133,631.45,629.66,0.29141281]
[1746784992947,0.31673133,631.45,629.67,0.29141281]
[1746784993353,0.31673133,631.45,629.68,0.29141281]
[1746784993754,0.31673133,631.45,629.69,0.29141281]
[1746784994153,0.31673133,631.45,629.7,0.29141281]
[1746784994648,0.31673133,631.45,629.71,0.29141281]
[1746784994950,0.31673133,631.45,629.72,0.29141281]
[1746784995250,0.31673133,631.45,629.73,0.29141281]
[1746784995454,0.31673133,631.45,629.6,0.27584348]
[1746784995455,0.31673133,631.45,629.74,0.29141281]
[1746784995755,0.31673133,631.45,629.75,0.29141281]
[1746784996056,0.31673133,631.45,629.76,0.29141281]
[1746784996253,0.31673133,631.45,629.77,0.29141281]
[1746784996556,0.31673133,631.45,629.78,0.29141281]
[1746784996856,0.31673133,631.45,629.79,0.29141281]
[1746784997258,0.31673133,631.45,629.8,0.29141281]
[1746784997559,0.31673133,631.45,629.81,0.29141281]
[1746784997957,0.31673133,631.45,629.6,0.27584348]
[1746784997958,0.31673133,631.45,629.82,0.29141281]
[1746784998360,0.31673133,631.45,629.83,0.29141281]
[1746784998659,0.31673133,631.45,629.84,0.29141281]
[1746784998957,0.31673133,631.45,629.85,0.29141281]
[1746784999257,0.31673133,631.45,629.86,0.29141281]
[1746784999553,0.31673133,631.45,629.87,0.29141281]
[1746784999951,0.31673133,631.45,629.88,0.29141281]
[1746785000257,0.31673133,631.45,629.89,0.29141281]
[1746785000458,0.31673133,631.45,629.9,0.29141281]
[1746785000858,0.31673133,631.45,629.91,0.29141281]
[1746785001054,0.31673133,631.45,629.92,0.29141281]
[1746785001355,0.31673133,631.45,629.93,0.29141281]
[1746785001960,0.31673133,631.45,629.61,0.29141281]
[1746785002562,0.31673133,631.45,629.62,0.29141281]
[1746785002962,0.31673133,631.45,629.63,0.29141281]
[1746785003362,0.31673133,631.45,629.64,0.29141281]
[1746785003768,0.31673133,631.45,629.65,0.29141281]
[1746785004063,0.31673133,631.45,629.66,0.29141281]
[1746785004462,0.31673133,631.45,629.67,0.29141281]
[1746785004763,0.31673133,631.45,629.68,0.29141281]
[1746785005063,0.31673133,631.45,629.69,0.29141281]
[1746785005364,0.31673133,631.45,629.7,0.29141281]
[1746785005864,0.31673133,631.45,629.71,0.29141281]
[1746785006165,0.31673133,631.45,629.72,0.29141281]
[1746785006562,0.31673133,631.45,629.73,0.29141281]
[1746785006957,0.31673133,631.45,629.74,0.29141281]
[1746785007266,0.31673133,631.45,629.75,0.29141281]
[1746785007764,0.31673133,631.45,629.76,0.29141281]
[1746785008063,0.31673133,631.45,629.77,0.29141281]
[1746785008865,0.31673133,631.45,629.78,0.29141281]
[1746785009165,0.31673133,631.45,629.79,0.29141281]
[1746785009466,0.31673133,631.45,629.8,0.29141281]
[1746785009862,0.31673133,631.45,629.81,0.29141281]
[1746785010163,0.31673133,631.45,629.82,0.29141281]
[1746785010568,0.31673133,631.45,629.83,0.29141281]
[1746785010867,0.31673133,631.45,629.84,0.29141281]
[1746785011162,0.31673133,631.45,629.85,0.29141281]
[1746785011567,0.31673133,631.45,629.86,0.29141281]
[1746785011765,0.31673133,631.45,629.87,0.29141281]
[1746785012369,0.31673133,631.45,629.88,0.29141281]
[1746785012569,0.31673133,631.45,629.89,0.29141281]
[1746785012969,0.31673133,631.45,629.9,0.29141281]
[1746785013272,0.31673133,631.45,629.91,0.29141281]
[1746785013573,0.31673133,631.45,629.92,0.29141281]
[1746785013873,0.31673133,631.45,629.93,0.29141281]
[1746785014073,0.31673133,631.45,629.94,0.29141281]
[1746785014572,0.31673133,631.45,629.95,0.29141281]
[1746785014974,0.31673133,631.45,629.96,0.29141281]
[1746785015474,0.31673133,631.45,629.97,0.29141281]
[1746785015674,0.31673133,631.45,629.98,0.29141281]
[1746785015974,0.31673133,631.45,629.99,0.29141281]
[1746785016374,0.31673133,631.45,630.0,0.29141281]
[1746785016675,0.31673133,631.45,630.01,0.29141281]
[1746785016970,0.31673133,631.45,630.02,0.29141281]
[1746785017275,0.31673133,631.45,630.03,0.29141281]
[1746785017777,0.31673133,631.45,630.04,0.29141281]
[1746785018078,0.31673133,631.45,630.05,0.29141281]
[1746785018474,0.31673133,631.45,630.06,0.29141281]
[1746785018879,0.31673133,631.45,630.07,0.29141281]
[1746785019178,0.31673133,631.45,630.08,0.29141281]
[1746785019878,0.31673133,631.45,630.09,0.29141281]
[1746785020278,0.31673133,631.45,630.1,0.29141281]
[1746785020677,0.31673133,631.45,630.11,0.29141281]
[1746785020978,0.31673133,631.45,630.12,0.29141281]
[1746785021280,0.31673133,631.45,629.89,0.27572437]
[1746785021480,0.31673133,631.45,629.69,1.00675414]
[1746785021681,0.31673133,631.45,629.9,0.29106537]
[1746785021881,0.31673133,631.45,629.7,0.56681159]
[1746785022185,0.31673133,631.45,629.71,0.29106537]
[1746785022484,0.31673133,631.45,629.72,0.29106537]
[1746785022782,0.31673133,631.45,629.73,0.29106537]
[1746785023083,0.31673133,631.45,629.74,0.29106537]
[1746785023483,0.31673133,631.45,629.75,0.29106537]
[1746785023783,0.31673133,631.45,629.76,0.29106537]
[1746785024083,0.31673133,631.45,629.77,0.29106537]
[1746785024685,0.31673133,631.45,629.78,0.29106537]
[1746785025181,0.31673133,631.45,629.79,0.29106537]
[1746785025583,0.31673133,631.45,629.8,0.29106537]
[1746785025782,0.31673133,631.45,629.81,0.29106537]
[1746785026286,0.31673133,631.45,629.82,0.29106537]
[1746785026680,0.31673133,631.45,629.83,0.29106537]
[1746785026985,0.31673133,631.45,629.84,0.29106537]
[1746785027285,0.31673133,631.45,629.73,0.27578774]
[1746785027693,0.31673133,631.45,629.74,0.29115474]
[1746785027982,0.31673133,631.45,629.75,0.29115474]
[1746785028386,0.31673133,631.45,629.76,0.29115474]
[1746785028682,0.31673133,631.45,629.77,0.29115474]
[1746785028987,0.31673133,631.45,629.78,0.29115474]
[1746785029289,0.31673133,631.45,629.79,0.29115474]
[1746785029688,0.31673133,631.45,629.8,0.29115474]
[1746785030085,0.31673133,631.45,629.81,0.29115474]
[1746785030487,0.31673133,631.45,629.82,0.29115474]
[1746785030688,0.31673133,631.45,629.83,0.29115474]
[1746785030984,0.31673133,631.45,629.84,0.29115474]
[1746785031385,0.31673133,631.45,629.54,0.31769228]
[1746785031386,0.31673133,631.45,629.85,0.29115474]
[1746785031685,0.31673133,631.45,629.86,0.29115474]
[1746785032090,0.31673133,631.45,629.87,0.29115474]
[1746785032494,0.31673133,631.45,629.88,0.29115474]
[1746785032789,0.31673133,631.45,629.8,0.2757637]
[1746785033090,0.31673133,631.45,629.81,0.29110463]
[1746785033391,0.31673133,631.45,629.82,0.29110463]
[1746785033790,0.31673133,631.45,629.83,0.29110463]
[1746785034086,0.31673133,631.45,629.84,0.29110463]
[1746785034491,0.31673133,631.45,629.85,0.29110463]
[1746785034791,0.31673133,631.45,629.86,0.29110463]
[1746785035090,0.31673133,631.45,629.87,0.29110463]
[1746785035388,0.31673133,631.45,629.88,0.29110463]
[1746785035591,0.31673133,631.45,629.89,0.29110463]
[1746785035887,0.31673133,631.45,629.9,0.29110463]
[1746785036294,0.31673133,631.45,629.91,0.29110463]
[1746785036690,0.31673133,631.45,629.92,0.29110463]
[1746785037093,0.31673133,631.45,629.93,0.29110463]
[1746785037397,0.31673133,631.45,629.94,0.29110463]
[1746785037693,0.31673133,631.45,629.95,0.29110463]
[1746785038097,0.31673133,631.45,629.96,0.29110463]
[1746785038394,0.31673133,631.45,629.97,0.29110463]
[1746785038793,0.31673133,631.45,629.98,0.29110463]
[1746785039194,0.31673133,631.45,629.99,0.29110463]
[1746785039495,0.31673133,631.45,630.0,0.29110463]
[1746785039795,0.31673133,631.45,630.01,0.29110463]
[1746785040294,0.31673133,631.45,630.02,0.29110463]
[1746785040595,0.31673133,631.45,630.03,0.29110463]
[1746785041095,0.31673133,631.45,630.04,0.29110463]
[1746785041397,0.31673133,631.45,630.08,1.00675414]
[1746785042096,0.31673133,631.45,630.09,0.29110463]
[1746785042496,0.31673133,631.45,630.1,0.29110463]
[1746785042798,0.31673133,631.45,630.11,0.29110463]
[1746785043293,0.31673133,631.45,630.08,1.00675414]
[1746785043498,0.31673133,631.45,630.12,0.29113397]
[1746785043798,0.31673133,631.45,630.04,0.29113397]
[1746785044199,0.31673133,631.45,630.05,0.29113397]
[1746785044704,0.31673133,631.45,630.06,0.29113397]
[1746785045102,0.31673133,631.45,630.07,0.29113397]
[1746785045504,0.31673133,631.45,630.08,0.29113397]
[1746785045702,0.31673133,631.45,630.0,0.27573966]
[1746785046003,0.31673133,631.45,630.01,0.29113397]
[1746785046305,0.31673133,631.45,630.02,0.29113397]
[1746785046703,0.31673133,631.45,630.03,0.29113397]
[1746785047002,0.31673133,631.45,630.04,0.29113397]
[1746785047402,0.31673133,631.45,630.05,0.29113397]
[1746785047805,0.31673133,631.45,630.01,0.29113397]
[1746785048007,0.31673133,631.45,630.01,1.29788811]
[1746785048503,0.31673133,631.45,630.02,0.29113397]
[1746785050601,0.31673133,631.45,630.01,0.27574622]
[1746785050910,0.31673133,631.45,630.02,0.29117111]
[1746785052010,0.31673133,631.45,629.86,0.29117111]
[1746785052709,0.31673133,631.45,629.87,0.27577025]
[1746785053213,0.31673133,631.45,629.88,0.29117111]
[1746785053510,0.31673133,631.45,629.87,0.27577025]
[1746785053910,0.31673133,631.45,629.88,0.29115376]
[1746785056507,0.31673133,631.45,629.87,0.27577025]
[1746785056907,0.31673133,631.45,629.88,0.29120621]
[1746785058811,0.27581178,631.71,629.89,0.29120621]
[1746785059014,0.27581178,631.71,629.87,0.27577025]
[1746785059015,0.26110438,631.7,629.9,0.29120621]
[1746785059413,0.26110438,631.7,629.91,0.29120621]
[1746785059718,0.26110438,631.7,629.92,0.29120621]
[1746785060119,0.26110438,631.7,629.93,0.29120621]
[1746785060619,0.26110438,631.7,629.94,0.29120621]
[1746785061116,0.26110438,632.66,629.95,0.29120621]
[1746785061413,0.26110438,632.65,629.96,0.29120621]
[1746785061719,0.53679708,632.65,629.96,0.29120621]
[1746785062013,0.26110438,632.64,629.97,0.29120621]
[1746785062220,2.01121044,632.37,629.97,0.29120621]
[1746785062518,2.01121044,632.37,629.98,0.29120621]
[1746785062718,0.26110438,632.36,629.98,0.29120621]
[1746785063018,0.26110438,632.35,629.91,0.29120621]
[1746785063416,0.26110438,632.34,629.92,0.29120621]
[1746785063815,0.26110438,632.33,629.93,0.29120621]
[1746785064221,0.26110438,632.32,629.94,0.29120621]
[1746785065128,0.26110438,632.31,629.91,0.29120621]
[1746785065524,0.26110438,632.3,629.92,0.29120621]
[1746785065824,0.26110438,632.33,629.91,0.29120621]
[1746785069731,0.27559336,632.32,629.91,0.29120621]
[1746785069931,0.31630555,632.3,630.03,0.3174452]
[1746785070426,0.26110438,632.29,630.04,0.29120621]
[1746785072735,0.27568942,632.28,630.04,0.29120621]
[1746785073131,0.26110438,632.27,630.04,0.29120621]
[1746785073327,0.27568942,632.28,630.03,0.3174452]
[1746785073731,0.2612011,632.27,630.04,0.29122434]
[1746785075932,0.2612011,632.29,630.04,0.29122434]
[1746785076931,0.27565448,632.28,630.04,0.29122434]
[1746785077232,0.2612011,632.27,630.04,0.29122434]
[1746785078726,0.2612011,632.27,630.15,0.31738474]
[1746785078929,0.27565448,632.26,630.15,0.31738474]
[1746785079132,0.31633556,632.24,630.16,0.29116792]
[1746785079329,0.26111309,632.23,630.16,0.29116792]
[1746785082737,0.27565885,632.22,630.16,0.29116792]
[1746785083036,0.26111309,632.21,630.16,0.29116792]
[1746785084939,0.26111309,632.23,630.16,0.29116792]
[1746785085742,0.27567195,632.22,630.16,0.29116792]
[1746785086135,0.26111309,632.21,630.16,0.29116792]
[1746785087741,0.2756785,632.2,630.16,0.29116792]
[1746785088142,0.26111309,632.19,630.16,0.29116792]
[1746785088543,0.2756785,632.2,630.16,0.29116792]
[1746785088544,0.26111309,632.18,630.16,0.29116792]
[1746785088843,0.26111309,632.17,630.16,0.29116792]
[1746785089242,0.26111309,632.16,630.16,0.29116792]
[1746785089641,0.26111309,632.15,630.16,0.29116792]
[1746785089844,0.2756785,632.2,630.15,0.31738474]
[1746785090243,0.26078618,632.19,630.16,0.29127414]
[1746785090649,0.26078618,632.18,630.16,0.29127414]
[1746785090943,0.26078618,632.17,630.16,0.29127414]
[1746785091244,0.26078618,632.16,630.16,0.29127414]
[1746785091540,0.26078618,632.15,630.16,0.29127414]
[1746785091744,0.26078618,632.15,630.18,0.31736964]
[1746785091944,0.26078618,632.19,630.18,0.31736964]
[1746785092145,0.26078618,632.19,630.19,0.29127414]
[1746785093746,0.2757058,632.18,630.19,0.29127414]
[1746785094045,0.26078618,632.17,630.19,0.29127414]
[1746785094544,0.26078618,632.17,630.18,0.31736964]
[1746785097046,0.53651274,632.16,630.19,0.29130848]
[1746785097345,0.26078618,632.15,630.19,0.29130848]
[1746785097646,0.26078618,632.14,630.19,0.29130848]
[1746785098045,0.26078618,632.13,630.19,0.29130848]
[1746785098340,0.26078618,632.12,630.19,0.29130848]
[1746785098745,0.26078618,632.11,630.19,0.29130848]
[1746785099250,0.26078618,632.1,630.19,0.29130848]
[1746785099648,0.26078618,632.09,630.19,0.29130848]
[1746785100147,0.26078618,632.08,630.19,0.29130848]
[1746785100646,0.26078618,632.07,630.19,0.29130848]
[1746785101050,0.26078618,632.06,630.19,0.29130848]
[1746785101748,0.26078618,632.05,630.19,0.29130848]
[1746785102048,0.26078618,632.04,630.18,0.31736964]
[1746785102344,0.26078618,632.03,630.18,0.31736964]
[1746785102747,0.26078618,632.02,630.18,0.31736964]
[1746785103050,0.26078618,632.01,630.18,0.31736964]
[1746785103349,0.26078618,632.0,630.18,0.31736964]
[1746785103651,0.26078618,631.99,630.18,0.31736964]
[1746785103851,0.26078618,631.98,630.18,0.31736964]
[1746785104253,0.26078618,631.97,630.18,0.31736964]
[1746785104447,0.26078618,631.96,630.18,0.31736964]
[1746785104752,0.26078618,631.95,630.18,0.31736964]
[1746785105246,0.26078618,631.94,630.18,0.31736964]
[1746785105650,0.26078618,632.01,630.18,0.31736964]
[1746785106452,0.26078618,632.0,630.18,0.31736964]
[1746785106753,0.26078618,631.99,630.18,0.31736964]
[1746785107055,0.26078618,631.98,630.18,0.31736964]
[1746785107354,0.26078618,631.97,630.18,0.31736964]
[1746785107655,0.26078618,631.96,630.18,0.31736964]
[1746785108054,0.26078618,632.01,630.18,0.31736964]
[1746785108757,0.27572656,632.0,630.18,0.31736964]
[1746785109258,0.26078618,631.99,630.18,0.31736964]
[1746785109559,0.26078618,631.99,630.19,0.29130869]
[1746785110457,0.27572656,632.0,630.18,0.31736964]
[1746785110659,0.26086579,631.98,630.18,0.31736964]
[1746785110857,0.26086579,631.99,630.19,0.29130492]
[1746785112756,0.26086579,631.98,630.19,0.29130492]
[1746785113056,0.26086579,631.97,630.19,0.29130492]
[1746785113560,0.26086579,631.99,630.19,0.29130492]
[1746785114161,0.26086579,631.98,630.19,0.29130492]
[1746785114466,0.26086579,631.99,630.19,0.29130492]
[1746785114757,0.27569051,631.97,630.19,0.29130492]
[1746785115157,0.26086579,631.96,630.19,0.29130492]
[1746785120667,0.26086579,632.23,630.19,0.29130492]
[1746785120869,0.27566649,631.95,630.19,0.29130492]
[1746785121069,0.26086579,632.23,630.19,0.29130492]